[Event "Early-Titled-Tuesday-Blitz-October-10-2023"]
[Site "Chess.com"]
[Date "2023.10.10"]
[Round "1"]
[White "masnyszachistaaa"]
[Black "matagordo"]
[Result "1-0"]
[WhiteElo "2585"]
[BlackElo "2220"]
[TimeControl "180+1"]
[EndTime "8:08:58 PDT"]
[Termination "masnyszachistaaa won by resignation"]

1. e4 {[%clk 0:03:00.9]} 1... e6 {[%clk 0:03:00.5]} 2. d4 {[%clk 0:03:00.2]}
2... d5 {[%clk 0:03:01.2]} 3. Nd2 {[%clk 0:03:00.7]} 3... Nc6 {[%clk 0:03:01.2]}
4. Ngf3 {[%clk 0:02:58]} 4... Nf6 {[%clk 0:03:01.1]} 5. e5 {[%clk 0:02:58.3]}
5... Nd7 {[%clk 0:03:01.6]} 6. Bd3 {[%clk 0:02:58.4]} 6... Nb4 {[%clk
0:03:01.1]} 7. Be2 {[%clk 0:02:57.4]} 7... c5 {[%clk 0:03:00.6]} 8. c3 {[%clk
0:02:57.4]} 8... Nc6 {[%clk 0:03:01.3]} 9. O-O {[%clk 0:02:57.1]} 9... Qb6
{[%clk 0:03:00]} 10. Nb1 {[%clk 0:02:18.2]} 10... Be7 {[%clk 0:02:59]} 11. Re1
{[%clk 0:02:05.7]} 11... O-O {[%clk 0:02:57.7]} 12. a3 {[%clk 0:01:58.5]} 12...
f6 {[%clk 0:02:57.3]} 13. exf6 {[%clk 0:01:58]} 13... Nxf6 {[%clk 0:02:52.8]}
14. b4 {[%clk 0:01:52.7]} 14... cxd4 {[%clk 0:02:49.4]} 15. cxd4 {[%clk
0:01:51.7]} 15... Qd8 {[%clk 0:02:19.5]} 16. Nc3 {[%clk 0:01:48.3]} 16... Kh8
{[%clk 0:02:18.9]} 17. Bd3 {[%clk 0:01:37.1]} 17... Qe8 {[%clk 0:02:11.4]} 18.
Ne2 {[%clk 0:01:36.6]} 18... Bd6 {[%clk 0:01:40.1]} 19. Ng3 {[%clk 0:01:29.6]}
19... Bxg3 {[%clk 0:01:39.4]} 20. hxg3 {[%clk 0:01:29.6]} 20... Qh5 {[%clk
0:01:37.7]} 21. b5 {[%clk 0:01:13.3]} 21... Ne7 {[%clk 0:01:33.2]} 22. Ne5
{[%clk 0:01:07.1]} 22... Qxd1 {[%clk 0:01:15.7]} 23. Rxd1 {[%clk 0:01:08]} 23...
Nf5 {[%clk 0:01:16.1]} 24. Bb2 {[%clk 0:00:53.8]} 24... Nd7 {[%clk 0:01:12.5]}
25. Nf3 {[%clk 0:00:49.4]} 25... g6 {[%clk 0:01:02.3]} 26. Rac1 {[%clk
0:00:49.2]} 26... a6 {[%clk 0:00:56.7]} 27. Rc7 {[%clk 0:00:46.7]} 27... axb5
{[%clk 0:00:48.4]} 28. Bxb5 {[%clk 0:00:47.6]} 28... Nf6 {[%clk 0:00:27.1]} 29.
Rdc1 {[%clk 0:00:39.6]} 29... Nd6 {[%clk 0:00:26.2]} 30. Bd3 {[%clk 0:00:36.5]}
30... Nfe4 {[%clk 0:00:24.3]} 31. R1c2 {[%clk 0:00:29.2]} 31... Rf7 {[%clk
0:00:20.5]} 32. Ne5 {[%clk 0:00:25.6]} 32... Rxc7 {[%clk 0:00:19.7]} 33. Rxc7
{[%clk 0:00:26.5]} 33... Kg8 {[%clk 0:00:13.2]} 34. Bc1 {[%clk 0:00:25.3]} 34...
Ra4 {[%clk 0:00:10.6]} 35. Nf3 {[%clk 0:00:20.4]} 35... Ra8 {[%clk 0:00:10]} 36.
g4 {[%clk 0:00:19.1]} 36... Ra4 {[%clk 0:00:09.6]} 37. g5 {[%clk 0:00:18.4]}
37... Ra8 {[%clk 0:00:08]} 38. Bf4 {[%clk 0:00:17.9]} 38... Nf7 {[%clk
0:00:05.8]} 39. Ne5 {[%clk 0:00:16]} 39... Nxe5 {[%clk 0:00:05.4]} 40. Bxe5
{[%clk 0:00:16.9]} 40... Nxg5 {[%clk 0:00:05.1]} 41. Bb5 {[%clk 0:00:16.6]}
41... Nf7 {[%clk 0:00:04.3]} 42. Bf6 {[%clk 0:00:16.8]} 42... Rb8 {[%clk
0:00:01.6]} 43. a4 {[%clk 0:00:16.8]} 43... b6 {[%clk 0:00:02.1]} 44. Kh2 {[%clk
0:00:16.1]} 44... Ra8 {[%clk 0:00:02.5]} 45. Bc6 {[%clk 0:00:15.6]} 45... Rb8
{[%clk 0:00:02.6]} 46. Kg3 {[%clk 0:00:15.6]} 46... Ba6 {[%clk 0:00:03.3]} 47.
Ra7 {[%clk 0:00:14.1]} 47... Bd3 {[%clk 0:00:03.8]} 48. Re7 {[%clk 0:00:12.4]}
48... Bf5 {[%clk 0:00:04.1]} 49. Kf4 {[%clk 0:00:12.6]} 49... Rc8 {[%clk
0:00:04.7]} 50. Bb5 {[%clk 0:00:12.3]} 50... Ra8 {[%clk 0:00:04.7]} 51. g4
{[%clk 0:00:12.5]} 51... Bc2 {[%clk 0:00:04]} 52. Rxe6 {[%clk 0:00:12.5]} 52...
Bxa4 {[%clk 0:00:04.2]} 53. Rxb6 {[%clk 0:00:11.8]} 53... Bxb5 {[%clk
0:00:04.3]} 54. Rxb5 {[%clk 0:00:12.7]} 54... Ra2 {[%clk 0:00:04.8]} 55. f3
{[%clk 0:00:12.6]} 55... Ra8 {[%clk 0:00:03.5]} 56. Rxd5 {[%clk 0:00:12.5]}
56... Re8 {[%clk 0:00:03.9]} 57. Rd7 {[%clk 0:00:12.5]} 57... g5+ {[%clk
0:00:02.6]} 58. Bxg5 {[%clk 0:00:10.8]} 58... Rf8 {[%clk 0:00:03.2]} 59. Bf6
{[%clk 0:00:10]} 59... Nh6 {[%clk 0:00:03]} 60. Kg5 {[%clk 0:00:09.9]} 60...
Nf7+ {[%clk 0:00:03.4]} 61. Kf5 {[%clk 0:00:10.5]} 61... Re8 {[%clk 0:00:03.9]}
62. Re7 {[%clk 0:00:10.4]} 62... Rc8 {[%clk 0:00:03.6]} 63. Re4 {[%clk
0:00:10.2]} 63... Rd8 {[%clk 0:00:04]} 64. Kf4 {[%clk 0:00:10.5]} 64... Rd5
{[%clk 0:00:04.3]} 65. Be5 {[%clk 0:00:10.9]} 65... Rd8 {[%clk 0:00:04.3]} 66.
Kg3 {[%clk 0:00:11.3]} 66... Rf8 {[%clk 0:00:04.9]} 67. f4 {[%clk 0:00:11.2]}
67... Nh6 {[%clk 0:00:05.6]} 68. f5 {[%clk 0:00:10.1]} 68... Ra8 {[%clk
0:00:05.8]} 69. Kf4 {[%clk 0:00:10.1]} 69... Ra1 {[%clk 0:00:05.7]} 70. Bf6
{[%clk 0:00:09.8]} 70... Rf1+ {[%clk 0:00:06.2]} 71. Ke5 {[%clk 0:00:06.9]}
71... Nf7+ {[%clk 0:00:06.7]} 72. Ke6 {[%clk 0:00:06.8]} 72... Ra1 {[%clk
0:00:06.6]} 73. Kd5 {[%clk 0:00:06.6]} 73... Ra5+ {[%clk 0:00:06.9]} 74. Kc4
{[%clk 0:00:07.1]} 74... Ra8 {[%clk 0:00:07.2]} 75. Kd3 {[%clk 0:00:06.9]} 75...
h5 {[%clk 0:00:07.7]} 76. g5 {[%clk 0:00:06.9]} 76... Ra3+ {[%clk 0:00:08.1]}
77. Kc4 {[%clk 0:00:07]} 77... Ra4+ {[%clk 0:00:08.5]} 78. Kd5 {[%clk
0:00:07.4]} 78... Ra8 {[%clk 0:00:09.4]} 79. g6 {[%clk 0:00:07.1]} 79... Rd8+
{[%clk 0:00:09.8]} 80. Bxd8 {[%clk 0:00:06.8]} 80... Nxd8 {[%clk 0:00:08.9]} 81.
Re8+ {[%clk 0:00:06.7]} 81... Kg7 {[%clk 0:00:09.1]} 82. Rxd8 {[%clk 0:00:07.6]}
82... Kf6 {[%clk 0:00:10]} 83. Rd7 {[%clk 0:00:08.2]} 1-0

[Event "Early-Titled-Tuesday-Blitz-October-10-2023"]
[Site "Chess.com"]
[Date "2023.10.10"]
[Round "1"]
[White "Chessdreamer2020"]
[Black "Alenzer"]
[Result "1-0"]
[WhiteElo "2548"]
[BlackElo "2102"]
[TimeControl "180+1"]
[EndTime "8:09:27 PDT"]
[Termination "Chessdreamer2020 won by resignation"]

1. e4 {[%clk 0:03:00.9]} 1... c5 {[%clk 0:02:56.1]} 2. Nf3 {[%clk 0:03:01.3]}
2... e6 {[%clk 0:02:56.4]} 3. b3 {[%clk 0:02:59.9]} 3... Nc6 {[%clk 0:02:55.9]}
4. Bb5 {[%clk 0:03:00]} 4... d5 {[%clk 0:02:55.2]} 5. Bxc6+ {[%clk 0:02:58.5]}
5... bxc6 {[%clk 0:02:55.2]} 6. e5 {[%clk 0:02:59.4]} 6... Ba6 {[%clk
0:02:54.3]} 7. d3 {[%clk 0:02:59.9]} 7... f6 {[%clk 0:02:50.7]} 8. c4 {[%clk
0:02:59]} 8... fxe5 {[%clk 0:02:46.3]} 9. Nxe5 {[%clk 0:02:59.9]} 9... Nf6
{[%clk 0:02:22.6]} 10. O-O {[%clk 0:02:55.9]} 10... Bd6 {[%clk 0:02:21.6]} 11.
Re1 {[%clk 0:02:48.4]} 11... O-O {[%clk 0:02:07.7]} 12. Nd2 {[%clk 0:02:47.5]}
12... Bxe5 {[%clk 0:01:34.7]} 13. Rxe5 {[%clk 0:02:42.7]} 13... dxc4 {[%clk
0:01:28]} 14. Ba3 {[%clk 0:01:21.4]} 14... Qxd3 {[%clk 0:01:02.1]} 15. Nxc4
{[%clk 0:01:13.6]} 15... Bxc4 {[%clk 0:00:56]} 16. Qxd3 {[%clk 0:01:09.7]} 16...
Bxd3 {[%clk 0:00:55.2]} 17. Rxe6 {[%clk 0:01:10.3]} 17... Rfe8 {[%clk
0:00:40.6]} 18. Rxc6 {[%clk 0:01:08.3]} 18... Re2 {[%clk 0:00:34.1]} 19. Bxc5
{[%clk 0:01:07.2]} 19... Rae8 {[%clk 0:00:33.5]} 20. h3 {[%clk 0:01:03]} 20...
Ne4 {[%clk 0:00:31.2]} 21. Bd4 {[%clk 0:00:56.6]} 21... Rd2 {[%clk 0:00:28.4]}
22. Rc7 {[%clk 0:00:55.5]} 22... Nf6 {[%clk 0:00:21.4]} 23. Bxa7 {[%clk
0:00:56]} 23... Ree2 {[%clk 0:00:20.5]} 24. Be3 {[%clk 0:00:53.9]} 24... Rc2
{[%clk 0:00:18.8]} 25. Rxc2 {[%clk 0:00:52.5]} 25... Rxc2 {[%clk 0:00:19.7]} 26.
a4 {[%clk 0:00:52.4]} 26... Rc8 {[%clk 0:00:19.4]} 27. a5 {[%clk 0:00:52.7]}
27... Ra8 {[%clk 0:00:20.1]} 28. b4 {[%clk 0:00:53]} 28... Nd5 {[%clk
0:00:20.5]} 29. Bc5 {[%clk 0:00:50.8]} 29... Bb5 {[%clk 0:00:19]} 30. Rd1 {[%clk
0:00:50.9]} 30... Nc3 {[%clk 0:00:19.4]} 31. Rd6 {[%clk 0:00:49.5]} 31... Ne4
{[%clk 0:00:18.2]} 32. Rb6 {[%clk 0:00:48]} 32... Bc4 {[%clk 0:00:16.4]} 33. Bd4
{[%clk 0:00:47]} 33... Rd8 {[%clk 0:00:14.3]} 34. Be5 {[%clk 0:00:45.9]} 34...
Rd1+ {[%clk 0:00:13.3]} 35. Kh2 {[%clk 0:00:44.9]} 35... Nxf2 {[%clk 0:00:13.6]}
36. Rb7 {[%clk 0:00:43.2]} 36... Rh1+ {[%clk 0:00:10.1]} 37. Kg3 {[%clk
0:00:42.8]} 37... Ne4+ {[%clk 0:00:11]} 38. Kf4 {[%clk 0:00:43.1]} 38... Nf6
{[%clk 0:00:11.4]} 39. b5 {[%clk 0:00:42.2]} 39... Rf1+ {[%clk 0:00:10]} 40. Kg3
{[%clk 0:00:39.9]} 40... Re1 {[%clk 0:00:10]} 41. Bxf6 {[%clk 0:00:38.6]} 41...
gxf6 {[%clk 0:00:10.4]} 42. a6 {[%clk 0:00:39.2]} 42... Ra1 {[%clk 0:00:10.9]}
43. a7 {[%clk 0:00:39.3]} 43... Bxb5 {[%clk 0:00:11]} 44. Rb8+ {[%clk
0:00:39.6]} 44... Kf7 {[%clk 0:00:11.4]} 45. a8=Q {[%clk 0:00:40.5]} 45... Rxa8
{[%clk 0:00:11.5]} 46. Rxa8 {[%clk 0:00:40.7]} 46... Kg6 {[%clk 0:00:09.8]} 47.
Kf4 {[%clk 0:00:40.7]} 47... Bd3 {[%clk 0:00:10]} 48. Ra7 {[%clk 0:00:40.2]}
48... Bc4 {[%clk 0:00:09.7]} 49. g3 {[%clk 0:00:40.3]} 49... h5 {[%clk 0:00:10]}
50. Rc7 {[%clk 0:00:40.3]} 50... Be6 {[%clk 0:00:10.3]} 51. Re7 {[%clk
0:00:39.5]} 51... Bxh3 {[%clk 0:00:10.6]} 52. Re8 {[%clk 0:00:37.2]} 52... Kf7
{[%clk 0:00:09.7]} 53. Rh8 {[%clk 0:00:37.2]} 53... Bg4 {[%clk 0:00:10.1]} 54.
Rd8 {[%clk 0:00:33.1]} 54... Ke7 {[%clk 0:00:10.3]} 55. Rb8 {[%clk 0:00:31.7]}
55... Kf7 {[%clk 0:00:09.9]} 56. Rb6 {[%clk 0:00:31.5]} 56... Kg6 {[%clk
0:00:09.6]} 57. Ke4 {[%clk 0:00:31.8]} 57... Bf5+ {[%clk 0:00:07.9]} 58. Kf4
{[%clk 0:00:31.5]} 58... Bg4 {[%clk 0:00:08.4]} 59. Rb5 {[%clk 0:00:31.6]} 59...
Kg7 {[%clk 0:00:09]} 60. Ra5 {[%clk 0:00:32]} 60... Kg6 {[%clk 0:00:09.9]} 61.
Ke4 {[%clk 0:00:31]} 61... Kg7 {[%clk 0:00:10.8]} 62. Kd5 {[%clk 0:00:31.3]}
62... Kg6 {[%clk 0:00:10.8]} 63. Kd6 {[%clk 0:00:31.9]} 63... f5 {[%clk
0:00:09.1]} 64. Ke5 {[%clk 0:00:30.9]} 64... Kg5 {[%clk 0:00:09.3]} 65. Ra8
{[%clk 0:00:29.9]} 65... h4 {[%clk 0:00:09.4]} 66. Rg8+ {[%clk 0:00:29.9]} 66...
Kh6 {[%clk 0:00:05.2]} 67. Rh8+ {[%clk 0:00:30.4]} 67... Kg7 {[%clk 0:00:05.9]}
68. Rxh4 {[%clk 0:00:30.1]} 68... Kg6 {[%clk 0:00:06.4]} 69. Kf4 {[%clk
0:00:30.3]} 69... Kf6 {[%clk 0:00:06.2]} 70. Rh6+ {[%clk 0:00:30.1]} 70... Kg7
{[%clk 0:00:06.6]} 71. Kg5 {[%clk 0:00:30.3]} 71... Kf7 {[%clk 0:00:07.2]} 72.
Rf6+ {[%clk 0:00:30.2]} 72... Kg7 {[%clk 0:00:07.7]} 73. Rc6 {[%clk 0:00:28.3]}
73... Kf7 {[%clk 0:00:07.9]} 74. Rc7+ {[%clk 0:00:28.7]} 74... Ke8 {[%clk
0:00:07.1]} 75. Kf6 {[%clk 0:00:28]} 75... Kd8 {[%clk 0:00:07.6]} 76. Rc5 {[%clk
0:00:27.8]} 76... Kd7 {[%clk 0:00:06.9]} 77. Rxf5 {[%clk 0:00:28.2]} 77... Bxf5
{[%clk 0:00:06.9]} 78. Kxf5 {[%clk 0:00:28.8]} 78... Ke7 {[%clk 0:00:07.8]} 79.
Kg6 {[%clk 0:00:29]} 79... Kf8 {[%clk 0:00:08.5]} 80. Kh7 {[%clk 0:00:29.1]}
80... Kf7 {[%clk 0:00:09]} 81. g4 {[%clk 0:00:29.8]} 81... Kf6 {[%clk
0:00:09.5]} 82. Kh6 {[%clk 0:00:30.3]} 82... Kf7 {[%clk 0:00:10.1]} 83. g5
{[%clk 0:00:30.8]} 83... Kg8 {[%clk 0:00:10.6]} 84. Kg6 {[%clk 0:00:26.5]} 84...
Kf8 {[%clk 0:00:11]} 85. Kh7 {[%clk 0:00:26.5]} 85... Kf7 {[%clk 0:00:11.7]} 86.
g6+ {[%clk 0:00:27]} 86... Kf6 {[%clk 0:00:12.6]} 87. g7 {[%clk 0:00:27.4]}
87... Kg5 {[%clk 0:00:13.5]} 88. g8=Q+ {[%clk 0:00:27.6]} 88... Kh5 {[%clk
0:00:14.4]} 89. Qg2 {[%clk 0:00:25.9]} 1-0

[Event "Early-Titled-Tuesday-Blitz-October-10-2023"]
[Site "Chess.com"]
[Date "2023.10.10"]
[Round "1"]
[White "Josgar05"]
[Black "LeoLV10"]
[Result "1/2-1/2"]
[WhiteElo "2240"]
[BlackElo "2577"]
[TimeControl "180+1"]
[EndTime "8:09:35 PDT"]
[Termination "Game drawn - insufficient material"]

1. d4 {[%clk 0:02:58.6]} 1... Nf6 {[%clk 0:02:56.9]} 2. Nf3 {[%clk 0:02:57.7]}
2... e6 {[%clk 0:02:54.6]} 3. Bf4 {[%clk 0:02:57.1]} 3... d5 {[%clk 0:02:52.7]}
4. e3 {[%clk 0:02:56.8]} 4... Bd6 {[%clk 0:02:52]} 5. Bd3 {[%clk 0:02:55.5]}
5... O-O {[%clk 0:02:51.7]} 6. Nbd2 {[%clk 0:02:53.5]} 6... c5 {[%clk
0:02:51.6]} 7. c3 {[%clk 0:02:53.5]} 7... Qc7 {[%clk 0:02:50.3]} 8. Ne5 {[%clk
0:02:33]} 8... Nbd7 {[%clk 0:02:47.6]} 9. Ndf3 {[%clk 0:02:32.8]} 9... Ne4
{[%clk 0:02:32.4]} 10. Qc2 {[%clk 0:01:57]} 10... f5 {[%clk 0:02:18.7]} 11. Nxd7
{[%clk 0:01:46.2]} 11... Bxd7 {[%clk 0:02:18.1]} 12. Bxd6 {[%clk 0:01:45.7]}
12... Nxd6 {[%clk 0:02:17.6]} 13. Ne5 {[%clk 0:01:40.6]} 13... cxd4 {[%clk
0:02:01.8]} 14. exd4 {[%clk 0:01:39.9]} 14... Bb5 {[%clk 0:02:01.4]} 15. O-O
{[%clk 0:01:36.2]} 15... Bxd3 {[%clk 0:02:00.7]} 16. Qxd3 {[%clk 0:01:35.9]}
16... Rf6 {[%clk 0:02:01.4]} 17. Rfe1 {[%clk 0:01:34.4]} 17... Raf8 {[%clk
0:02:00.9]} 18. f3 {[%clk 0:01:17.3]} 18... Rh6 {[%clk 0:01:51.7]} 19. h3 {[%clk
0:01:16.9]} 19... Qe7 {[%clk 0:01:31.3]} 20. Qe2 {[%clk 0:01:05.5]} 20... Rhf6
{[%clk 0:01:17.6]} 21. Rad1 {[%clk 0:00:56.3]} 21... Kh8 {[%clk 0:01:12.6]} 22.
Nd3 {[%clk 0:00:53.7]} 22... f4 {[%clk 0:01:08.4]} 23. Qd2 {[%clk 0:00:46.4]}
23... Nc4 {[%clk 0:01:05.2]} 24. Qc1 {[%clk 0:00:46.6]} 24... Ne3 {[%clk
0:01:01.3]} 25. Rd2 {[%clk 0:00:43.2]} 25... Nc4 {[%clk 0:00:55.6]} 26. Rde2
{[%clk 0:00:42.6]} 26... Qd6 {[%clk 0:00:44.6]} 27. b3 {[%clk 0:00:42.7]} 27...
Nb6 {[%clk 0:00:36.5]} 28. Qd2 {[%clk 0:00:33.8]} 28... Nd7 {[%clk 0:00:34]} 29.
Kh1 {[%clk 0:00:31.1]} 29... h5 {[%clk 0:00:30.4]} 30. Ne5 {[%clk 0:00:26.7]}
30... Kg8 {[%clk 0:00:18]} 31. Qd3 {[%clk 0:00:26.3]} 31... Qc7 {[%clk
0:00:08.3]} 32. c4 {[%clk 0:00:22.4]} 32... dxc4 {[%clk 0:00:07.2]} 33. bxc4
{[%clk 0:00:23.3]} 33... Rd8 {[%clk 0:00:06.8]} 34. Qe4 {[%clk 0:00:18.8]} 34...
Nb6 {[%clk 0:00:06.5]} 35. c5 {[%clk 0:00:18.6]} 35... Nd5 {[%clk 0:00:06.6]}
36. Nc4 {[%clk 0:00:19.2]} 36... Nc3 {[%clk 0:00:06.2]} 37. Qe5 {[%clk
0:00:17.4]} 37... Qd7 {[%clk 0:00:03.3]} 38. Rc2 {[%clk 0:00:16]} 38... Nb5
{[%clk 0:00:02.7]} 39. Nd6 {[%clk 0:00:11.2]} 39... Nxd6 {[%clk 0:00:03]} 40.
cxd6 {[%clk 0:00:12.1]} 40... Qxd6 {[%clk 0:00:03.6]} 41. Qxh5 {[%clk 0:00:12]}
41... Qxd4 {[%clk 0:00:03.1]} 42. Rce2 {[%clk 0:00:12.4]} 42... Qd6 {[%clk
0:00:03.3]} 43. Qg4 {[%clk 0:00:12]} 43... Re8 {[%clk 0:00:03.3]} 44. Qh5 {[%clk
0:00:12.3]} 44... Qe7 {[%clk 0:00:02.8]} 45. Qe5 {[%clk 0:00:12.4]} 45... Qf7
{[%clk 0:00:03.2]} 46. Rc1 {[%clk 0:00:12.6]} 46... Rf5 {[%clk 0:00:03.6]} 47.
Qd4 {[%clk 0:00:12]} 47... e5 {[%clk 0:00:04.1]} 48. Qxa7 {[%clk 0:00:12]} 48...
e4 {[%clk 0:00:03.5]} 49. fxe4 {[%clk 0:00:12.5]} 49... f3 {[%clk 0:00:03.6]}
50. Rf2 {[%clk 0:00:10.3]} 50... fxg2+ {[%clk 0:00:03.7]} 51. Rxg2 {[%clk
0:00:11.1]} 51... Rf1+ {[%clk 0:00:03.5]} 52. Rxf1 {[%clk 0:00:10.9]} 52...
Qxf1+ {[%clk 0:00:04.4]} 53. Qg1 {[%clk 0:00:10.9]} 53... Qxg1+ {[%clk
0:00:04.6]} 54. Rxg1 {[%clk 0:00:11.8]} 54... Rxe4 {[%clk 0:00:05.1]} 55. Rb1
{[%clk 0:00:12.1]} 55... Re7 {[%clk 0:00:04.5]} 56. Rb6 {[%clk 0:00:12]} 56...
Kf8 {[%clk 0:00:04.9]} 57. Kg2 {[%clk 0:00:12.2]} 57... Ke8 {[%clk 0:00:05.6]}
58. Kg3 {[%clk 0:00:12.8]} 58... Kd8 {[%clk 0:00:06.4]} 59. Rb2 {[%clk
0:00:12.9]} 59... Kc7 {[%clk 0:00:05.9]} 60. Kg4 {[%clk 0:00:13.6]} 60... Re4+
{[%clk 0:00:06.1]} 61. Kg5 {[%clk 0:00:13.1]} 61... Re3 {[%clk 0:00:06.3]} 62.
h4 {[%clk 0:00:13.4]} 62... Rg3+ {[%clk 0:00:06.6]} 63. Kf4 {[%clk 0:00:12.9]}
63... Rg1 {[%clk 0:00:07.3]} 64. h5 {[%clk 0:00:13.1]} 64... Kc6 {[%clk
0:00:05.7]} 65. Kf5 {[%clk 0:00:13.4]} 65... b5 {[%clk 0:00:05.8]} 66. Rc2+
{[%clk 0:00:13.5]} 66... Kb6 {[%clk 0:00:05.9]} 67. Rd2 {[%clk 0:00:10.2]} 67...
Ka5 {[%clk 0:00:05.9]} 68. Rd3 {[%clk 0:00:10.5]} 68... Ka4 {[%clk 0:00:05.9]}
69. a3 {[%clk 0:00:11]} 69... Rf1+ {[%clk 0:00:03.5]} 70. Kg6 {[%clk 0:00:10.8]}
70... Rg1+ {[%clk 0:00:04.4]} 71. Kh7 {[%clk 0:00:11.2]} 71... Rg5 {[%clk
0:00:04.7]} 72. h6 {[%clk 0:00:10.8]} 72... gxh6 {[%clk 0:00:04.5]} 73. Kxh6
{[%clk 0:00:11.7]} 73... Rc5 {[%clk 0:00:04.4]} 74. Kg6 {[%clk 0:00:11.7]} 74...
Rc2 {[%clk 0:00:05.1]} 75. Kf5 {[%clk 0:00:11.4]} 75... Ra2 {[%clk 0:00:05.9]}
76. Ke5 {[%clk 0:00:10.9]} 76... Rxa3 {[%clk 0:00:06.4]} 77. Rd4+ {[%clk
0:00:11.3]} 77... b4 {[%clk 0:00:07]} 78. Rd8 {[%clk 0:00:11.7]} 78... Rc3
{[%clk 0:00:07.6]} 79. Rb8 {[%clk 0:00:11.4]} 79... Kb3 {[%clk 0:00:08.3]} 80.
Kd4 {[%clk 0:00:12.1]} 80... Rc7 {[%clk 0:00:08.5]} 81. Kd3 {[%clk 0:00:12.4]}
81... Rd7+ {[%clk 0:00:08.4]} 82. Ke2 {[%clk 0:00:13.1]} 82... Kc3 {[%clk
0:00:07.9]} 83. Rc8+ {[%clk 0:00:13]} 83... Kb2 {[%clk 0:00:08.6]} 84. Rb8
{[%clk 0:00:13.9]} 84... b3 {[%clk 0:00:09.2]} 85. Ke1 {[%clk 0:00:14.1]} 85...
Kc2 {[%clk 0:00:09.3]} 86. Rc8+ {[%clk 0:00:14.5]} 86... Kb1 {[%clk 0:00:09.9]}
87. Rb8 {[%clk 0:00:15.2]} 87... b2 {[%clk 0:00:10.6]} 88. Rb4 {[%clk
0:00:15.8]} 88... Rd3 {[%clk 0:00:09.9]} 89. Ke2 {[%clk 0:00:16]} 89... Rd6
{[%clk 0:00:07.5]} 90. Rb5 {[%clk 0:00:15.8]} 90... Rd4 {[%clk 0:00:06.4]} 91.
Rb6 {[%clk 0:00:15]} 91... Ra4 {[%clk 0:00:03.9]} 92. Kd2 {[%clk 0:00:13.7]}
92... Ka1 {[%clk 0:00:03.4]} 93. Kc2 {[%clk 0:00:11.5]} 93... Rc4+ {[%clk
0:00:03]} 94. Kd3 {[%clk 0:00:11.9]} 94... b1=Q+ {[%clk 0:00:03.3]} 95. Rxb1+
{[%clk 0:00:11.4]} 95... Kxb1 {[%clk 0:00:04.2]} 96. Kxc4 {[%clk 0:00:11.9]}
1/2-1/2